fUST/lending_fUST_20250608
["ID","MTS","AMOUNT","RATE_DAILY","PERIOD"]
[364971873,1749370251022,-1098.08,0.00021095,2]
[364971874,1749370251032,-440.0,0.00021095,2]
[364971875,1749370251042,-2602.26,0.00021095,2]
[364971876,1749370251051,-440.0,0.00021095,2]
[364971877,1749370251060,-440.0,0.00021095,2]
[364971878,1749370251070,-500.16,0.00021095,2]
[364971879,1749370251080,-440.0,0.00021095,2]
[364971880,1749370251089,-1193.65,0.00021095,2]
[364971881,1749370251099,-440.0,0.00021095,2]
[364971882,1749370251108,-440.0,0.00021095,2]
[364971883,1749370251117,-481.17,0.00021095,2]
[364971884,1749370251127,-1228.34,0.00021095,2]
[364971885,1749370251136,-440.0,0.00021095,2]
[364971886,1749370251146,-440.0,0.00021095,2]
[364971887,1749370251156,-440.0,0.00021095,2]
[364971888,1749370251165,-440.0,0.00021095,2]
[364971889,1749370251175,-440.0,0.00021095,2]
[364971890,1749370251185,-256.18449495,0.00021095,2]
[364971891,1749370251194,-440.0,0.00021095,2]
[364971892,1749370251204,-430.0,0.00021095,2]
[364971893,1749370251214,-440.0,0.00021095,2]
[364971894,1749370251224,-1252.61,0.00021095,2]
[364971895,1749370251234,-522.81,0.00021095,2]
[364971896,1749370251243,-440.0,0.00021095,2]
[364971897,1749370251253,-440.0,0.00021095,2]
[364971898,1749370251262,-251.1289143,0.00021095,2]
[364971899,1749370251272,-681.62,0.00021095,2]
[364971900,1749370251281,-440.0,0.00021095,2]
[364971901,1749370251291,-440.0,0.00021095,2]
[364971902,1749370251300,-2207.65,0.00021095,2]
[364971903,1749370251309,-1304.44,0.00021095,2]
[364971904,1749370251319,-3194.87,0.00021095,2]
[364971905,1749370251329,-3087.95,0.00021095,2]
[364971906,1749370251339,-150.30078731,0.00021095,2]
[364971907,1749370251425,-908.71,0.00021095,2]
[364971908,1749370251444,-915.87,0.00021095,2]
[364971909,1749370251454,-3150.35,0.00021095,2]
[364971910,1749370251464,-3113.45,0.00021095,2]
[364971911,1749370251474,-440.0,0.00021095,2]
[364971912,1749370251484,-440.0,0.00021095,2]
[364971913,1749370251495,-289.54124939,0.00021095,2]
[364971914,1749370251505,-1725.61,0.00021095,2]
[364971915,1749370251514,-934.54,0.00021095,2]
[364971916,1749370251524,-2695.16,0.00021095,2]
[364971917,1749370251534,-440.0,0.00021095,2]
[364971918,1749370251544,-1018.44,0.00021095,2]
[364971919,1749370251554,-440.0,0.00021095,2]
[364971920,1749370251564,-1024.06,0.00021095,2]
[364971921,1749370251574,-587.0,0.00021176,2]
[364971922,1749370251583,-587.0,0.00021176,2]
[364971923,1749370251593,-11063.36847332,0.0002126,2]
[364971924,1749370251602,-184.93364748,0.00021336,2]
[364971925,1749370251612,-5000.0,0.00021358,2]
[364971926,1749370251622,-2500.0,0.00021364,2]
[364971927,1749370251632,-440.0,0.00021369,2]
[364971928,1749370251642,-440.0,0.00021369,2]
[364971929,1749370251653,-202.78718356,0.00021369,2]
[364971930,1749370251663,-440.0,0.00021369,2]
[364971931,1749370251673,-440.0,0.00021369,2]
[364971932,1749370251683,-440.0,0.00021369,2]
[364971933,1749370251694,-791.26,0.00021369,2]
[364971934,1749370251705,-1098.08,0.00021369,2]
[364971935,1749370251716,-440.0,0.00021369,2]
[364971936,1749370251727,-2602.26,0.00021369,2]
[364971937,1749370251737,-440.0,0.00021369,2]
[364971938,1749370251748,-440.0,0.00021369,2]
[364971939,1749370251757,-500.16,0.00021369,2]
[364971940,1749370251766,-440.0,0.00021369,2]
[364971941,1749370251775,-1193.65,0.00021369,2]
[364971942,1749370251786,-440.0,0.00021369,2]
[364971943,1749370251795,-440.0,0.00021369,2]
[364971944,1749370251804,-481.17,0.00021369,2]
[364971945,1749370251814,-1228.34,0.00021369,2]
[364971946,1749370251823,-400.0,0.00021369,2]
[364971947,1749370251833,-440.0,0.00021369,2]
[364971948,1749370251843,-440.0,0.00021369,2]
[364971949,1749370251855,-440.0,0.00021369,2]
[364971950,1749370251864,-440.0,0.00021369,2]
[364971951,1749370251875,-440.0,0.00021369,2]
[364971952,1749370251885,-440.0,0.00021369,2]
[364971953,1749370251894,-1252.61,0.00021369,2]
[364971954,1749370251904,-522.81,0.00021369,2]
[364971955,1749370251915,-440.0,0.00021369,2]
[364971956,1749370251924,-440.0,0.00021369,2]
[364971957,1749370251934,-681.62,0.00021369,2]
[364971958,1749370251944,-440.0,0.00021369,2]
[364971959,1749370251953,-440.0,0.00021369,2]
[364971960,1749370251964,-2207.65,0.00021369,2]
[364971961,1749370251974,-1304.44,0.00021369,2]
[364971962,1749370251983,-3194.87,0.00021369,2]
[364971963,1749370251993,-3087.95,0.00021369,2]
[364971964,1749370252003,-908.71,0.00021369,2]
[364971965,1749370252014,-915.87,0.00021369,2]
[364971966,1749370252023,-3150.35,0.00021369,2]
[364971967,1749370252034,-3113.45,0.00021369,2]
[364971968,1749370252044,-440.0,0.00021369,2]
[364971969,1749370252054,-440.0,0.00021369,2]
[364971970,1749370252065,-1725.61,0.00021369,2]
[364971971,1749370252074,-934.54,0.00021369,2]
[364971972,1749370252085,-2695.16,0.00021369,2]
[364971973,1749370252095,-440.0,0.00021369,2]
[364971974,1749370252104,-1018.44,0.00021369,2]
[364971975,1749370252114,-440.0,0.00021369,2]
[364971976,1749370252124,-1024.06,0.00021369,2]
[364971977,1749370252134,-42709.41633631,0.00021399,7]
[364971978,1749370252145,-440.0,0.00021643,2]
[364971979,1749370252154,-440.0,0.00021643,2]
[364971980,1749370252165,-440.0,0.00021643,2]
[364971981,1749370252175,-440.0,0.00021643,2]
[364971982,1749370252184,-440.0,0.00021643,2]
[364971983,1749370252194,-500.0,0.00021643,4]
[364971984,1749370252204,-791.26,0.00021643,2]
[364971985,1749370252213,-1098.08,0.00021643,2]
[364971986,1749370252223,-440.0,0.00021643,2]
[364971987,1749370252233,-2602.26,0.00021643,2]
[364971988,1749370252242,-440.0,0.00021643,2]
[364971989,1749370252252,-440.0,0.00021643,2]
[364971990,1749370252261,-500.16,0.00021643,2]
[364971991,1749370252271,-440.0,0.00021643,2]
[364971992,1749370252281,-1193.65,0.00021643,2]
[364971993,1749370252290,-440.0,0.00021643,2]
[364971994,1749370252300,-567.11625404,0.00021643,2]
[364971995,1749370252310,-481.17,0.00021643,2]
[364971996,1749370252321,-1228.34,0.00021643,2]
[364971997,1749370252330,-440.0,0.00021643,2]
[364971998,1749370252340,-440.0,0.00021643,2]
[364971999,1749370252349,-440.0,0.00021643,2]
[364972000,1749370252360,-440.0,0.00021643,2]
[364972001,1749370252370,-440.0,0.00021643,2]
[364972002,1749370252380,-430.86038447,0.00021643,2]
[364972003,1749370252390,-1252.61,0.00021643,2]
[364972004,1749370252400,-522.81,0.00021643,2]
[364972005,1749370252410,-440.0,0.00021643,2]
[364972006,1749370252420,-440.0,0.00021643,2]
[364972007,1749370252431,-681.62,0.00021643,2]
[364972008,1749370252440,-517.41816201,0.00021643,2]
[364972009,1749370252450,-440.0,0.00021643,2]
[364972010,1749370252460,-2207.65,0.00021643,2]
[364972011,1749370252470,-1304.44,0.00021643,2]
[364972012,1749370252480,-3194.87,0.00021643,2]
[364972013,1749370252489,-3087.95,0.00021643,2]
[364972014,1749370252499,-908.71,0.00021643,2]
[364972015,1749370252509,-915.87,0.00021643,2]
[364972016,1749370252519,-3150.35,0.00021643,2]
[364972017,1749370252529,-3113.45,0.00021643,2]
[364972018,1749370252539,-440.0,0.00021643,2]
[364972019,1749370252549,-440.0,0.00021643,2]
[364972020,1749370252560,-1725.61,0.00021643,2]
[364972021,1749370252570,-934.54,0.00021643,2]
[364972022,1749370252580,-2695.16,0.00021643,2]
[364972023,1749370252590,-440.0,0.00021643,2]
[364972024,1749370252600,-1018.44,0.00021643,2]
[364972025,1749370252611,-440.0,0.00021643,2]
[364972026,1749370252622,-1024.06,0.00021643,2]
[364972027,1749370252631,-500.0,0.00021655,2]
[364972028,1749370252642,-500.0,0.00021655,2]
[364972029,1749370252652,-600.0,0.00021655,2]
[364972030,1749370252662,-500.0,0.00021655,2]
[364972031,1749370252672,-504.14233961,0.00021655,2]
[364972032,1749370252682,-500.0,0.00021655,2]
[364972033,1749370252692,-501.83712656,0.00021655,2]
[364972034,1749370252703,-500.0,0.00021655,2]
[364972035,1749370252713,-500.0,0.00021655,2]
[364972036,1749370252723,-500.0,0.00021655,2]
[364972037,1749370252732,-502.16556292,0.00021655,2]
[364972038,1749370252742,-479.68947817,0.00021655,2]
[364972039,1749370252752,-500.0,0.00021655,2]
[364972040,1749370252762,-501.14289764,0.00021655,2]
[364972041,1749370252772,-500.0,0.00021655,2]
[364972042,1749370252783,-500.0,0.00021708,2]
[364972043,1749370252793,-500.0,0.00021708,2]
[364972044,1749370252804,-500.0,0.00021709,2]
[364972045,1749370252814,-500.0,0.00021709,2]
[364972046,1749370252824,-612.82522177,0.00021737,2]
[364972047,1749370252834,-500.0,0.00021737,2]
[364972048,1749370252845,-500.0,0.00021737,2]
[364972049,1749370252859,-153.75662207,0.00021743,2]
[364972050,1749370252869,-500.0,0.00021743,2]
[364972051,1749370252879,-500.0,0.00021775,2]
[364972052,1749370252888,-500.0,0.00021775,2]
[364972053,1749370252898,-11063.36847332,0.00021807,2]
[364972054,1749370252908,-2673.37,0.00021844,2]
[364972055,1749370252918,-5000.0,0.00021906,2]
[364972056,1749370252928,-3000.0,0.00021912,2]
[364972057,1749370252938,-433.89463576,0.00021917,2]
[364972058,1749370252948,-440.0,0.00021917,2]
[364972059,1749370252957,-500.0,0.00021917,2]
[364972060,1749370252967,-440.0,0.00021917,2]
[364972061,1749370252977,-440.0,0.00021917,2]
[364972062,1749370252987,-440.0,0.00021917,2]
[364972063,1749370252998,-791.26,0.00021917,2]
[364972064,1749370253008,-1098.08,0.00021917,2]
[364972065,1749370253018,-440.0,0.00021917,2]
[364972066,1749370253029,-2602.26,0.00021917,2]
[364972067,1749370253040,-440.0,0.00021917,2]
[364972068,1749370253050,-440.0,0.00021917,2]
[364972069,1749370253059,-500.16,0.00021917,2]
[364972070,1749370253156,-440.0,0.00021917,2]
[364972071,1749370253166,-1193.65,0.00021917,2]
[364972072,1749370253176,-543.4865294,0.00021917,2]
[364972073,1749370253186,-500.0,0.00021917,2]
[364972074,1749370253196,-500.0,0.00021917,2]
[364972075,1749370253206,-500.0,0.00021917,2]
[364972076,1749370253215,-500.0,0.00021917,2]
[364972077,1749370253225,-500.0,0.00021917,2]
[364972078,1749370253234,-508.34594437,0.00021917,2]
[364972079,1749370253243,-481.17,0.00021917,2]
[364972080,1749370253253,-1228.34,0.00021917,2]
[364972081,1749370253263,-440.0,0.00021917,2]
[364972082,1749370253272,-440.0,0.00021917,2]
[364972083,1749370253281,-440.0,0.00021917,2]
[364972084,1749370253292,-440.0,0.00021917,2]
[364972085,1749370253302,-440.0,0.00021917,2]
[364972086,1749370253312,-1252.61,0.00021917,2]
[364972087,1749370253322,-522.81,0.00021917,2]
[364972088,1749370253332,-440.0,0.00021917,2]
[364972089,1749370253342,-440.0,0.00021917,2]
[364972090,1749370253352,-681.62,0.00021917,2]
[364972091,1749370253362,-570.8,0.00021917,2]
[364972092,1749370253371,-2207.65,0.00021917,2]
[364972093,1749370253382,-1304.44,0.00021917,2]
[364972094,1749370253392,-3194.87,0.00021917,2]
[364972095,1749370253402,-3087.95,0.00021917,2]
[364972096,1749370253413,-908.71,0.00021917,2]
[364972097,1749370253422,-915.87,0.00021917,2]
[364972098,1749370253432,-3150.35,0.00021917,2]
[364972099,1749370253443,-3113.45,0.00021917,2]
[364972100,1749370253452,-440.0,0.00021917,2]
[364972101,1749370253462,-440.0,0.00021917,2]
[364972102,1749370253472,-1725.61,0.00021917,2]
[364972103,1749370253481,-934.54,0.00021917,2]
[364972104,1749370253491,-2695.16,0.00021917,2]
[364972105,1749370253501,-440.0,0.00021917,2]
[364972106,1749370253511,-1018.44,0.00021917,2]
[364972107,1749370253521,-440.0,0.00021917,2]
[364972108,1749370253531,-1024.06,0.00021917,2]
[364972109,1749370253541,-153.0,0.00021918,2]
[364972110,1749370253551,-153.0,0.00021918,2]
[364972111,1749370253560,-153.0,0.00021918,2]
[364972112,1749370253570,-153.0,0.00021918,2]
[364972113,1749370253579,-153.0,0.00021918,2]
[364972114,1749370253589,-153.0,0.00021918,2]
[364972115,1749370253599,-153.0,0.00021918,2]
[364972116,1749370253610,-153.0,0.00021918,2]
[364972117,1749370253620,-153.0,0.00021918,2]
[364972118,1749370253631,-153.0,0.00021918,2]
[364972119,1749370253642,-153.0,0.00021918,2]
[364972120,1749370253652,-153.0,0.00021918,2]
[364972121,1749370253663,-153.0,0.00021918,2]
[364972122,1749370253672,-153.0,0.00021918,2]
[364972123,1749370253683,-153.0,0.00021918,2]
[364972124,1749370253693,-153.0,0.00021918,2]
[364972125,1749370253704,-153.0,0.00021918,2]
[364972126,1749370253714,-153.0,0.00021918,2]
[364972127,1749370253724,-153.0,0.00021918,2]
[364972128,1749370253734,-153.0,0.00021918,2]
[364972129,1749370253745,-153.0,0.00021918,2]
[364972130,1749370253755,-153.0,0.00021918,2]
[364972131,1749370253764,-153.0,0.00021918,2]
[364972132,1749370253774,-153.0,0.00021918,2]
[364972133,1749370253785,-153.0,0.00021918,2]
[364972134,1749370253796,-153.0,0.00021918,2]
[364972135,1749370253807,-153.0,0.00021918,2]
[364972136,1749370253817,-153.0,0.00021918,2]
[364972137,1749370253829,-153.0,0.00021918,2]
[364972138,1749370253841,-153.0,0.00021918,2]
[364972139,1749370253857,-153.0,0.00021918,2]
[364972140,1749370253866,-153.0,0.00021918,2]
[364972141,1749370253875,-153.0,0.00021918,2]
[364972142,1749370253886,-153.0,0.00021918,2]
[364972143,1749370253897,-153.0,0.00021918,2]
[364972144,1749370253907,-153.0,0.00021918,2]
[364972145,1749370253918,-153.0,0.00021918,2]
[364972146,1749370253929,-153.0,0.00021918,2]
[364972147,1749370253939,-153.0,0.00021918,2]
[364972148,1749370253949,-153.0,0.00021918,2]
[364972149,1749370253959,-153.0,0.00021918,2]
[364972150,1749370253969,-153.0,0.00021918,2]
[364972151,1749370253978,-153.0,0.00021918,2]
[364972152,1749370253988,-153.0,0.00021918,2]
[364972153,1749370253998,-153.0,0.00021918,2]
[364972154,1749370254008,-153.0,0.00021918,2]
[364972155,1749370254019,-153.0,0.00021918,2]
[364972156,1749370254030,-153.0,0.00021918,2]
[364972157,1749370254040,-153.0,0.00021918,2]
[364972158,1749370254050,-153.0,0.00021918,2]
[364972159,1749370254061,-153.0,0.00021918,2]
[364972160,1749370254070,-153.0,0.00021918,2]
[364972161,1749370254080,-153.0,0.00021918,2]
[364972162,1749370254091,-153.0,0.00021918,2]
[364972163,1749370254101,-153.0,0.00021918,2]
[364972164,1749370254112,-153.0,0.00021918,2]
[364972165,1749370254123,-153.0,0.00021918,2]
[364972166,1749370254133,-153.0,0.00021918,2]
[364972167,1749370254143,-153.0,0.00021918,2]
[364972168,1749370254154,-153.0,0.00021918,2]
[364972169,1749370254165,-153.0,0.00021918,2]
[364972170,1749370254174,-153.0,0.00021918,2]
[364972171,1749370254183,-153.0,0.00021918,2]
[364972172,1749370254195,-153.0,0.00021918,2]
[364972173,1749370254205,-153.0,0.00021918,2]
[364972174,1749370254217,-153.0,0.00021918,2]
[364972175,1749370254228,-153.0,0.00021918,2]
[364972176,1749370254237,-153.0,0.00021918,2]
[364972177,1749370254248,-153.0,0.00021918,2]
[364972178,1749370254258,-153.0,0.00021918,2]
[364972179,1749370254267,-153.0,0.00021918,2]
[364972180,1749370254277,-153.0,0.00021918,2]
[364972181,1749370254287,-153.0,0.00021918,2]
[364972182,1749370254299,-153.0,0.00021918,2]
[364972183,1749370254310,-153.0,0.00021918,2]
[364972184,1749370254320,-153.0,0.00021918,2]
[364972185,1749370254329,-153.0,0.00021918,2]
[364972186,1749370254339,-153.0,0.00021918,2]
[364972187,1749370254349,-153.0,0.00021918,2]
[364972188,1749370254360,-153.0,0.00021918,2]
[364972189,1749370254370,-153.0,0.00021918,2]
[364972190,1749370254380,-153.0,0.00021918,2]
[364972191,1749370254390,-153.0,0.00021918,2]
[364972192,1749370254400,-153.0,0.00021918,2]
[364972193,1749370254410,-153.0,0.00021918,2]
[364972194,1749370254420,-153.0,0.00021918,2]
[364972195,1749370254429,-153.0,0.00021918,2]
[364972196,1749370254440,-153.0,0.00021918,2]
[364972197,1749370254450,-153.0,0.00021918,2]
[364972198,1749370254460,-153.0,0.00021918,2]
[364972199,1749370254470,-153.0,0.00021918,2]
[364972200,1749370254480,-153.0,0.00021918,2]
[364972201,1749370254490,-153.0,0.00021918,2]
[364972202,1749370254500,-153.0,0.00021918,2]
[364972203,1749370254510,-153.0,0.00021918,2]
[364972204,1749370254520,-153.0,0.00021918,2]
[364972205,1749370254530,-153.0,0.00021918,2]
[364972206,1749370254539,-153.0,0.00021918,2]
[364972207,1749370254549,-153.0,0.00021918,2]
[364972208,1749370254559,-153.0,0.00021918,2]
[364972209,1749370254570,-153.0,0.00021918,2]
[364972210,1749370254580,-153.0,0.00021918,2]
[364972211,1749370254590,-153.0,0.00021918,2]
[364972212,1749370254599,-153.0,0.00021918,2]
[364972213,1749370254609,-153.0,0.00021918,2]
[364972214,1749370254619,-153.0,0.00021918,2]
[364972215,1749370254629,-153.0,0.00021918,2]
[364972216,1749370254638,-153.0,0.00021918,2]
[364972217,1749370254648,-153.0,0.00021918,2]
[364972218,1749370254658,-153.0,0.00021918,2]
[364972219,1749370254671,-153.0,0.00021918,2]
[364972220,1749370254761,-153.0,0.00021918,2]
[364972221,1749370254772,-153.0,0.00021918,2]
[364972222,1749370254783,-153.0,0.00021918,2]
[364972223,1749370254793,-153.0,0.00021918,2]
[364972224,1749370254804,-153.0,0.00021918,2]
[364972225,1749370254815,-153.0,0.00021918,2]
[364972226,1749370254826,-153.0,0.00021918,2]
[364972227,1749370254836,-153.0,0.00021918,2]
[364972228,1749370254848,-153.0,0.00021918,2]
[364972229,1749370254860,-153.0,0.00021918,2]
[364972230,1749370254869,-153.0,0.00021918,2]
[364972231,1749370254879,-153.0,0.00021918,2]
[364972232,1749370254890,-153.0,0.00021918,2]
[364972233,1749370254899,-153.0,0.00021918,2]
[364972234,1749370254909,-153.0,0.00021918,2]
[364972235,1749370254918,-153.0,0.00021918,2]
[364972236,1749370254930,-153.0,0.00021918,2]
[364972237,1749370254939,-153.0,0.00021918,2]
[364972238,1749370254949,-153.0,0.00021918,2]
[364972239,1749370254958,-153.0,0.00021918,2]
[364972240,1749370254968,-153.0,0.00021918,2]
[364972241,1749370254977,-153.0,0.00021918,2]
[364972242,1749370254986,-153.0,0.00021918,2]
[364972243,1749370254995,-153.0,0.00021918,2]
[364972244,1749370255004,-153.0,0.00021918,2]
[364972245,1749370255014,-153.0,0.00021918,2]
[364972246,1749370255024,-153.0,0.00021918,2]
[364972247,1749370255033,-153.0,0.00021918,2]
[364972248,1749370255043,-153.0,0.00021918,2]
[364972249,1749370255051,-153.0,0.00021918,2]
[364972250,1749370255061,-153.0,0.00021918,2]
[364972251,1749370255070,-153.0,0.00021918,2]
[364972252,1749370255079,-153.0,0.00021918,2]
[364972253,1749370255088,-153.0,0.00021918,2]
[364972254,1749370255098,-153.0,0.00021918,2]
[364972255,1749370255108,-153.0,0.00021918,2]
[364972256,1749370255117,-153.0,0.00021918,2]
[364972257,1749370255126,-153.0,0.00021918,2]
[364972258,1749370255138,-153.0,0.00021918,2]
[364972259,1749370255147,-153.0,0.00021918,2]
[364972260,1749370255157,-153.0,0.00021918,2]
[364972261,1749370255167,-153.0,0.00021918,2]
[364972262,1749370255176,-153.0,0.00021918,2]
[364972263,1749370255186,-153.0,0.00021918,2]
[364972264,1749370255195,-153.0,0.00021918,2]
[364972265,1749370255205,-152.345615,0.00021918,2]
[364972266,1749370255216,-263.532698,0.00021918,2]
[364972267,1749370255226,-263.532698,0.00021918,2]
[364972268,1749370255236,-263.532698,0.00021918,2]
[364972269,1749370255246,-263.532698,0.00021918,2]
[364972270,1749370255256,-263.532698,0.00021918,2]
[364972271,1749370255265,-263.532698,0.00021918,2]
[364972272,1749370255274,-263.532698,0.00021918,2]
[364972273,1749370255284,-263.532698,0.00021918,2]
[364972274,1749370255294,-263.532698,0.00021918,2]
[364972275,1749370255304,-263.532698,0.00021918,2]
[364972276,1749370255313,-263.532698,0.00021918,2]
[364972277,1749370255325,-263.532698,0.00021918,2]
[364972278,1749370255335,-263.532698,0.00021918,2]
[364972279,1749370255345,-263.532698,0.00021918,2]
[364972280,1749370255355,-263.532698,0.00021918,2]
[364972281,1749370255364,-263.532698,0.00021918,2]
[364972282,1749370255374,-263.532698,0.00021918,2]
[364972283,1749370255384,-263.532698,0.00021918,2]
[364972284,1749370255393,-263.532698,0.00021918,2]
[364972285,1749370255403,-263.532708,0.00021918,2]
[364972286,1749370255413,-355.02028707,0.00021973,2]
[364972287,1749370255424,-500.0,0.00021973,2]
[364972288,1749370255434,-500.0,0.00021973,2]
[364972289,1749370255443,-500.0,0.00021973,2]
[364972290,1749370255452,-500.0,0.00021973,2]
[364972291,1749370255462,-500.0,0.00021973,2]
[364972292,1749370255472,-500.0,0.00021973,2]
[364972293,1749370255482,-500.0,0.00021973,2]
[364972294,1749370255492,-500.0,0.00021973,2]
[364972295,1749370255502,-501.34823422,0.00021973,2]
[364972296,1749370255512,-500.0,0.00021973,2]
[364972297,1749370255522,-1200.0,0.00021979,2]
[364972298,1749370255531,-188.0,0.00022,4]
[364972299,1749370255541,-16610.49683083,0.00022,2]
[364972300,1749370255551,-1787.52,0.00022,7]
[364972301,1749370255561,-120396.21,0.00022,7]
[364972302,1749370255571,-171.0,0.00022,2]
[364972303,1749370255582,-42565.21,0.000221,2]
[364972304,1749370255592,-1032.51,0.000221,7]
[364972305,1749370255602,-440.0,0.00022191,4]
[364972306,1749370255613,-440.0,0.00022191,4]
[364972307,1749370255622,-440.0,0.00022191,4]
[364972308,1749370255632,-440.0,0.00022191,4]
[364972309,1749370255642,-500.0,0.00022191,5]
[364972310,1749370255652,-791.26,0.00022191,4]
[364972311,1749370255664,-1098.08,0.00022191,4]
[364972312,1749370255673,-440.0,0.00022191,4]
[364972313,1749370255684,-2602.26,0.00022191,4]
[364972314,1749370255694,-440.0,0.00022191,4]
[364972315,1749370255705,-440.0,0.00022191,4]
[364972316,1749370255715,-500.16,0.00022191,4]
[364972317,1749370255725,-440.0,0.00022191,4]
[364972318,1749370255735,-1193.65,0.00022191,4]
[364972319,1749370255745,-481.17,0.00022191,4]
[364972320,1749370255756,-1228.34,0.00022191,4]
[364972321,1749370255766,-440.0,0.00022191,4]
[364972322,1749370255777,-440.0,0.00022191,4]
[364972323,1749370255786,-440.0,0.00022191,4]
[364972324,1749370255796,-440.0,0.00022191,4]
[364972325,1749370255805,-440.0,0.00022191,4]
[364972326,1749370255815,-1252.61,0.00022191,4]
[364972327,1749370255826,-522.81,0.00022191,4]
[364972328,1749370255837,-440.0,0.00022191,4]
[364972329,1749370255849,-440.0,0.00022191,4]
[364972330,1749370255860,-681.62,0.00022191,2]
[364972331,1749370255871,-2207.65,0.00022191,4]
[364972332,1749370255881,-3194.87,0.00022191,4]
[364972333,1749370255891,-1304.44,0.00022191,4]
[364972334,1749370255901,-3087.95,0.00022191,4]
[364972335,1749370255911,-908.71,0.00022191,4]
[364972336,1749370255921,-915.87,0.00022191,4]
[364972337,1749370255932,-3150.35,0.00022191,4]
[364972338,1749370255942,-3113.45,0.00022191,4]
[364972339,1749370255952,-440.0,0.00022191,4]
[364972340,1749370255962,-440.0,0.00022191,4]
[364972341,1749370255971,-1725.61,0.00022191,4]
[364972342,1749370255981,-934.54,0.00022191,4]
[364972343,1749370255992,-2695.16,0.00022191,4]
[364972344,1749370256002,-440.0,0.00022191,4]
[364972345,1749370256013,-1018.44,0.00022191,4]
[364972346,1749370256024,-440.0,0.00022191,4]
[364972347,1749370256034,-1024.06,0.00022191,4]
[364972348,1749370256044,-472.93256888,0.000222,69]
[364972349,1749370256056,-472.93256885,0.000222,69]
[364972350,1749370256066,-472.93256885,0.000222,69]
[364972351,1749370256076,-1002.01125953,0.00022203,2]
[364972352,1749370256086,-1001.50791894,0.00022203,2]
[364972353,1749370256096,-1200.0,0.00022203,2]
[364972354,1749370256108,-1000.0,0.00022203,2]
[364972355,1749370256118,-1001.54891852,0.00022203,2]
[364972356,1749370256127,-1000.0,0.00022203,2]
[364972357,1749370256137,-501.14582777,0.00022203,2]
[364972358,1749370256228,-1000.0,0.00022203,2]
[364972359,1749370256239,-1000.0,0.00022203,2]
[364972360,1749370256249,-1000.0,0.00022203,2]
[364972361,1749370256259,-510.03768667,0.00022256,2]
[364972362,1749370256269,-501.34608433,0.00022256,2]
[364972363,1749370256278,-371.75285369,0.00022257,2]
[364972364,1749370256288,-501.14727306,0.00022257,2]
[364972365,1749370256298,-1000.0,0.00022285,2]
[364972366,1749370256308,-1000.0,0.00022285,2]
[364972367,1749370256318,-1000.0,0.00022291,2]
[364972368,1749370256328,-1000.0,0.00022323,2]
[364972369,1749370256338,-1000.0,0.00022323,2]
[364972370,1749370256348,-231.28369723,0.00022338,2]
[364972371,1749370256358,-11063.36847332,0.00022354,2]
[364972372,1749370256368,-5000.0,0.00022454,2]